{"text_format":"1","workbook":"xlsx","n_sheets":1,"sheets":["FORM#41"],"not_rendered":{"charts":0,"images":0,"macros":1,"external_links":0,"defined_names":0,"comments":2,"pivot_tables":0},"unopened":[],"bounds":{"document_bytes":16777216,"sheet_cells":100000,"rows_first":2000,"rows_last":500,"rows_between":2000,"halvings":0,"cell_chars":16384,"cell_head_chars":4096},"cells_cut":0,"cells_raw":0,"read":"whole","date_system":"1904"}

{"sheet":"FORM#41","index":0,"n_rows":63,"n_cols":11,"rows_kept":63,"cut":false,"hidden":false,"merged":[[2,1,2,10],[39,1,39,2],[49,1,49,9],[0,1,0,2],[0,3,0,10],[40,2,40,9]]}
[null,"  NAME OF COLLEGE:"]
[]
[null,"STUDENT FINANCIAL AID REPORT, A.Y. 2025-2026 (Due November 10, 2026)"]
[]
[null,null,null,"     New Jersey Residents",null,"      New Jersey Residents",null,"            Out of State",null,"                 Total "]
[null,null,null,"  Full-Time Undergraduates",null,"  Part-Time Undergraduates",null,"           Undergraduates",null,"           Undergraduates"]
[null,"LN",null,"Recipients","Full $ Amount","Recipients","Full $ Amount","Recipients","Full $ Amount","Recipients","Full $ Amount"]
[]
[null,null," Federal Programs"]
[null,1," Pell Grants",null,null,null,null,null,null,{"$f":"D10+F10+H10","v":0},{"$f":"E10+G10+I10","v":0}]
[null,2," College Work Study",null,null,null,null,null,null,{"$f":"D11+F11+H11","v":0},{"$f":"E11+G11+I11","v":0}]
[null,3," Perkins Loans",null,null,null,null,null,null,0,0]
[null,4," SEOG",null,null,null,null,null,null,0,0]
[null,5," PLUS Loans",null,null,null,null,null,null,0,0]
[null,6," Direct (Stafford) Loans - Subsidized*",null,null,null,null,null,null,0,0]
[null,7,"Direct (Stafford) Loans - Unsubsidized*",null,null,null,null,null,null,0,0]
[null,8," SMART & ACG or other Federal",null,null,null,null,null,null,0,0]
[]
[null,null," State Programs"]
[null,11," Tuition Aid Grants (TAG)",null,null,null,null,null,null,{"$f":"D20+F20+H20","v":0},0]
[null,12," Educational Opportunity Fund",null,null,null,null,null,null,{"$f":"D21+F21+H21","v":0},{"$f":"E21+G21+I21","v":0}]
[null,13,"Other NJ Programs (NJ-GIVS, WTC, etc.)",null,null,null,null,null,null,0,0]
[null,14,"Distinguished Scholars",null,null,null,null,null,null,0,0]
[null,15,"Urban Scholars",null,null,null,null,null,null,0,0]
[null,16,"NJSTARS",null,null,null,null,null,null,0,0]
[null,17,"CCOG (County College Only)",null,null,null,null,null,null,0,0]
[null,18,"NJCLASS",null,null,null,null,null,null,0,0]
[null,19,"GSG (Senior Publics Only)",null,null,null,null,null,null,0,0]
[]
[null,null," Institutional Funds"]
[null,21," Grants & Scholarships",null,null,null,null,null,null,{"$f":"D31+F31+H31","v":0},{"$f":"E31+G31+I31","v":0}]
[null,22," Institutional Loans",null,null,null,null,null,null,{"$f":"D32+F32+H32","v":0},{"$f":"E32+G32+I32","v":0}]
[]
[null,null,"TOTAL (Unduplicated Recipients)",{"$f":"SUM(D10:D32)","v":0},null,{"$f":"SUM(F10:F32)","v":0},null,{"$f":"SUM(H10:H32)","v":0},null,{"$f":"SUM(J10:J32)","v":0}]
[]
[null,null,"Unduplicatd Recipients of Pell, TAG, CCOG, or EOF",{"$f":"SUM(D20:D22,D26)","v":0},null,{"$f":"SUM(F20:F22,F26)","v":0},null,{"$f":"SUM(H20:H22,H26)","v":0},null,{"$f":"SUM(J20:J22,J26)","v":0}]
[]
[null,null,"* FFELP or Direct","DO NOT ADD lines or columns to this spreadsheet. "]
[]
[null,"  NJ IPEDS Form #41",null," If you have questions about fitting programs into the existing categories, please email research@oshe.nj.gov."]
[null,null," NOTE: Unlike prior years, report the full aid amount rounded to the nearest dollar, NOT ROUNDED TO THE NEAREST THOUSAND."]
[null,null,"              A student may only be reported once per program - even if two awards were made within the year."]
[null,null,"              On the TOTAL (Unduplicated Recipients) line report the unduplicated number of aid recipients, "]
[null,null,"              many students receive aid from multiple programs, only count them once on this line."]
[null,null,"              The recipients and aid dollar amounts reported on the TOTAL columns should be the sum of all the individual aid programs. These columns currently have formulas to produce these results automatically. "]
[]
[]
[null,"N.J. IPEDS Form #41:  STUDENT FINANCIAL AID REPORT"]
[]
[null,"To submit your completed survey to the Research Unit in the Office of the Secretary of Higher Education, email this file to research@oshe.nj.gov or drop it in your designated moveIT folder."]
[]
[null,"For each Federal, State and Institutional Program listed, report the number of undergraduate recipients and the aggregate dollar amounts "]
[null,null,"awarded during academic year 2025-2026"]
[]
[null,"Institutional grants and scholarships (need-based or merit) should be reported on Line 21."]
[null,"Institutional loans (loans paid from institutional funds) should be reported on Line 22."]
[]
[null,"When reporting the number of recipients of a particular aid program, count each student only once per program, "]
[null,null,"even if two awards were made within the academic year.  Of course, a student may be a recipient of several different programs, "]
[null,null,"and thus be reported on several different lines.  On the last line (row 36), please supply an unduplicated headcount of all Undergradautes who receive a federal or state need-based aid award."]
[]
[null,null,"Each institution should use its own definition of in-state and out-of-state residency for classification purposes."]
[null,"Please use similar definitions and data that correspond to what you will report on the Federal IPEDS Student Financial Aid Survey for the 2025-26 Aid Year"]